fUST/lending_fUST_20250501
["ID","MTS","AMOUNT","RATE_DAILY","PERIOD"]
[359492549,1746063040484,-464.81934571,0.00040666,12]
[359492550,1746063040494,-183.55,0.00040666,12]
[359492551,1746063040503,-14763.13568207,0.00040667,2]
[359492552,1746063040513,-685.91652742,0.00040667,5]
[359492553,1746063040522,-400.0,0.00040691,12]
[359492554,1746063040532,-400.0,0.00040691,12]
[359492555,1746063040542,-400.0,0.00040691,12]
[359492556,1746063040551,-400.0,0.00040691,12]
[359492557,1746063040562,-400.0,0.00040691,12]
[359492558,1746063040572,-400.0,0.00040691,12]
[359492559,1746063040582,-233.53,0.00040691,12]
[359492560,1746063040591,-400.0,0.00040694,12]
[359492561,1746063040602,-400.0,0.00040694,12]
[359492562,1746063040612,-400.0,0.00040695,12]
[359492563,1746063040622,-400.0,0.00040696,12]
[359492564,1746063040632,-292.651501,0.00040696,12]
[359492565,1746063040642,-1239.0,0.00040698,48]
[359492566,1746063040654,-400.0,0.00040698,12]
[359492567,1746063040667,-400.0,0.00040698,12]
[359492568,1746063040676,-360.0,0.0004072,14]
[359492569,1746063040687,-294.11453078,0.0004072,14]
[359492570,1746063040696,-384.43,0.00040739,12]
[359492571,1746063040706,-400.0,0.0004074,12]
[359492572,1746063040715,-151.0,0.00040741,14]
[359492573,1746063040725,-151.0,0.00040741,14]
[359492574,1746063040734,-151.0,0.00040741,14]
[359492575,1746063040744,-151.0,0.00040741,14]
[359492576,1746063040753,-151.0,0.00040741,14]
[359492577,1746063040762,-151.0,0.00040741,14]
[359492578,1746063040771,-151.0,0.00040741,14]
[359492579,1746063040781,-151.0,0.00040741,14]
[359492580,1746063040790,-151.0,0.00040741,14]
[359492581,1746063040801,-400.0,0.00040741,12]
[359492582,1746063040810,-479.3,0.00040741,12]
[359492583,1746063040819,-400.0,0.00040741,12]
[359492584,1746063040829,-400.0,0.00040741,12]
[359492585,1746063040838,-400.0,0.00040741,12]
[359492586,1746063040848,-400.0,0.00040741,12]
[359492587,1746063040857,-400.0,0.00040741,12]
[359492588,1746063040866,-400.0,0.00040741,12]
[359492589,1746063040875,-400.0,0.00040741,12]
[359492590,1746063040885,-400.0,0.00040741,12]
[359492591,1746063040894,-216.2,0.00040741,12]
[359492592,1746063040903,-151.0,0.00040742,14]
[359492593,1746063040912,-151.0,0.00040742,14]
[359492594,1746063040921,-151.0,0.00040742,14]
[359492595,1746063040931,-151.0,0.00040742,14]
[359492596,1746063040940,-151.0,0.00040742,14]
[359492597,1746063040949,-151.0,0.00040742,14]
[359492598,1746063040958,-151.0,0.00040742,14]
[359492599,1746063040968,-151.0,0.00040742,14]
[359492600,1746063040978,-151.0,0.00040742,14]
[359492601,1746063040988,-151.0,0.00040742,14]
[359492602,1746063040998,-151.0,0.00040742,14]
[359492603,1746063041008,-151.0,0.00040742,14]
[359492604,1746063041017,-207.39119,0.00040742,14]
[359492605,1746063041027,-151.0,0.00040742,14]
[359492606,1746063041036,-400.0,0.00040759,12]
[359492607,1746063041045,-700.0,0.0004076,60]
[359492608,1746063041054,-730.0653561,0.00040763,3]
[359492609,1746063041063,-200.58065937,0.00040766,31]
[359492610,1746063041073,-356.54380379,0.00040766,31]
[359492611,1746063041086,-143.45619621,0.00040766,31]
[359492612,1746063041096,-369.57670376,0.00040766,31]
[359492613,1746063041105,-151.0,0.00040767,14]
[359492614,1746063041115,-176.736418,0.00040767,14]
[359492615,1746063041124,-176.736418,0.00040767,14]
[359492616,1746063041134,-176.736418,0.00040767,14]
[359492617,1746063041143,-176.736418,0.00040767,14]
[359492618,1746063041153,-176.736418,0.00040767,14]
[359492619,1746063041162,-65.28501003,0.00040767,14]
[359492629,1746063046181,-160.0,0.00037386,2]
[359492630,1746063046191,-201.86100498,0.00040273,12]
[359492631,1746063046201,-214.54326922,0.00040273,12]
[359492632,1746063046210,-111.45140797,0.00040767,14]
[359492633,1746063046220,-176.736418,0.00040767,14]
[359492634,1746063046230,-176.736418,0.00040767,14]
[359492635,1746063046239,-176.736418,0.00040767,14]
[359492636,1746063046249,-176.736418,0.00040767,14]
[359492637,1746063046260,-176.736418,0.00040767,14]
[359492638,1746063046270,-176.736418,0.00040767,14]
[359492639,1746063046280,-176.736418,0.00040767,14]
[359492640,1746063046290,-176.736418,0.00040767,14]
[359492641,1746063046299,-176.736418,0.00040767,14]
[359492642,1746063046309,-176.736418,0.00040767,14]
[359492643,1746063046320,-176.736418,0.00040767,14]
[359492644,1746063046330,-176.736418,0.00040767,14]
[359492645,1746063046339,-176.736418,0.00040767,14]
[359492646,1746063046349,-176.736422,0.00040767,14]
[359492647,1746063046359,-151.0,0.00040767,14]
[359492648,1746063046369,-151.0,0.00040767,14]
[359492649,1746063046378,-151.0,0.00040767,14]
[359492650,1746063046388,-151.0,0.00040767,14]
[359492651,1746063046398,-151.0,0.00040767,14]
[359492652,1746063046407,-151.0,0.00040767,14]
[359492653,1746063046417,-151.0,0.00040767,14]
[359492654,1746063046427,-151.0,0.00040767,14]
[359492655,1746063046436,-151.0,0.00040767,14]
[359492656,1746063046446,-151.0,0.00040767,14]
[359492657,1746063046455,-151.0,0.00040767,14]
[359492658,1746063046465,-151.0,0.00040767,14]
[359492659,1746063046475,-151.0,0.00040767,14]
[359492660,1746063046484,-208.890986,0.00040767,14]
[359492661,1746063046494,-151.0,0.00040767,14]
[359492662,1746063046503,-151.0,0.00040767,14]
[359492663,1746063046512,-151.0,0.00040767,14]
[359492664,1746063046522,-151.0,0.00040767,14]
[359492665,1746063046531,-151.0,0.00040767,14]
[359492666,1746063046542,-151.0,0.00040767,14]
[359492667,1746063046552,-151.0,0.00040767,14]
[359492668,1746063046561,-151.0,0.00040767,14]
[359492669,1746063046571,-151.0,0.00040767,14]
[359492670,1746063046580,-151.0,0.00040767,14]
[359492671,1746063046590,-203.896575,0.00040767,14]
[359492672,1746063046600,-151.0,0.00040767,14]
[359492673,1746063046611,-151.0,0.00040767,14]
[359492674,1746063046620,-151.0,0.00040767,14]
[359492675,1746063046630,-151.0,0.00040767,14]
[359492676,1746063046639,-151.0,0.00040767,14]
[359492677,1746063046649,-151.0,0.00040767,14]
[359492678,1746063046659,-151.0,0.00040767,14]
[359492679,1746063046672,-151.0,0.00040767,14]
[359492680,1746063046681,-151.0,0.00040767,14]
[359492681,1746063046690,-151.0,0.00040767,14]
[359492682,1746063046700,-151.0,0.00040767,14]
[359492683,1746063046711,-151.0,0.00040767,14]
[359492684,1746063046720,-151.0,0.00040767,14]
[359492685,1746063046730,-293.97953,0.00040767,14]
[359492686,1746063046739,-400.0,0.00040767,12]
[359492687,1746063046749,-400.0,0.00040767,12]
[359492688,1746063046759,-400.0,0.00040767,12]
[359492689,1746063046769,-400.0,0.00040767,12]
[359492690,1746063046778,-184.28,0.00040767,12]
[359492691,1746063046788,-887.347566,0.00040767,14]
[359492692,1746063046797,-887.347566,0.00040767,14]
[359492693,1746063046806,-887.347566,0.00040767,14]
[359492694,1746063046816,-887.347566,0.00040767,14]
[359492695,1746063046825,-887.347566,0.00040767,14]
[359492696,1746063046834,-887.347566,0.00040767,14]
[359492697,1746063046843,-887.347566,0.00040767,14]
[359492698,1746063046853,-887.347566,0.00040767,14]
[359492699,1746063046863,-887.347566,0.00040767,14]
[359492700,1746063046872,-887.347566,0.00040767,14]
[359492701,1746063046882,-887.347566,0.00040767,14]
[359492702,1746063046891,-887.347566,0.00040767,14]
[359492703,1746063046901,-887.347566,0.00040767,14]
[359492704,1746063046910,-887.347566,0.00040767,14]
[359492705,1746063046919,-776.91909661,0.00040767,14]
[359492707,1746063277060,-200.0,0.00025205,3]
[359492708,1746063277080,-88.0,0.00027,10]
[359492709,1746063305383,-351.80956948,0.00018973,2]
[359492710,1746063347341,-148.19043052,0.00018973,2]
[359492711,1746063347363,-28.80956948,0.00027,10]
[359492777,1746063477918,-18262.80367353,0.00026574,2]
[359492778,1746063477938,-19913.19632647,0.00026574,2]
[359492781,1746063573905,-86.80367353,0.00026574,2]
[359492782,1746063573926,-29498.19632647,0.00026574,3]
[359492783,1746063586512,-2000.0,0.00032,120]
[359492784,1746063642826,-300.0,0.00026573,2]
[359492785,1746063642854,-1200.0,0.00026573,2]
[359492786,1746063642882,-300.0,0.00026573,2]
[359492787,1746063642906,-30501.80367353,0.00026574,3]
[359492788,1746063642931,-154.83177516,0.00026748,2]
[359492789,1746063642964,-3932.36455131,0.00026849,2]
[359492801,1746063973639,-1048.7,0.00028315,120]
[359492804,1746064017129,-200.0,0.00026,7]
[359492805,1746064017151,-61.98448754,0.00026848,2]
[359492806,1746064049093,-1138.01551246,0.00026848,2]
[359492807,1746064049115,-174.73108464,0.00026848,2]
[359492808,1746064050092,-125.26891536,0.00026848,2]
[359492809,1746064050114,-551.73607238,0.00026849,2]
[359492810,1746064051082,-4629.46098821,0.00026849,2]
[359492811,1746064053115,-1540.64043243,0.00026849,2]
[359492812,1746064053144,-6659.64285826,0.00026849,2]
[359492815,1746064145092,-2686.15509741,0.00026849,2]
[359492816,1746064145112,-504.80803374,0.000269,2]
[359492817,1746064145132,-500.0,0.000269,2]
[359492818,1746064145151,-200.0,0.00027,3]
[359492819,1746064145173,-172.33455,0.00027397,2]
[359492820,1746064145192,-0.0800854,0.00028315,120]
[359492821,1746064145213,-300.0,0.00028397,2]
[359492822,1746064145232,-2644.4899152,0.00028398,2]
[359492823,1746064145253,-247.0,0.00029159,2]
[359492824,1746064145272,-501.58491528,0.00029933,5]
[359492825,1746064145291,-502.13218264,0.00029933,5]
[359492826,1746064145312,-505.25475578,0.00029933,5]
[359492827,1746064145332,-500.64820162,0.00030033,5]
[359492828,1746064145352,-500.0,0.00030033,5]
[359492829,1746064145371,-500.56408554,0.00030033,5]
[359492830,1746064145390,-500.0,0.00030033,5]
[359492831,1746064145410,-340.2131611,0.00030033,5]
[359492835,1746064166117,-205.33540038,0.00029933,2]
[359492836,1746064166139,-500.0,0.00030033,5]
[359492837,1746064166161,-423.14149842,0.00030033,5]
[359492838,1746064166183,-505.42553631,0.00030033,2]
[359492839,1746064166203,-184.59429747,0.000303,5]
[359492840,1746064166223,-455.17102402,0.000303,2]
[359492841,1746064166244,-500.64692646,0.000303,5]
[359492842,1746064166264,-500.0,0.00030625,5]
[359492843,1746064166285,-500.0,0.00030625,5]
[359492844,1746064166306,-420.0,0.00030657,2]
[359492845,1746064166328,-500.0,0.00030883,5]
[359492846,1746064166349,-503.63794219,0.00030883,5]
[359492847,1746064168003,200.0,0.000275,3]
[359492848,1746064168089,-514.74221845,0.0003105,4]
[359492849,1746064168113,-605.95738644,0.0003105,2]
[359492850,1746064168134,-500.0,0.0003105,5]
[359492851,1746064168156,-472.75330468,0.0003105,5]
[359492852,1746064168176,-500.0,0.0003105,5]
[359492853,1746064168197,-595.68490508,0.00031114,5]
[359492854,1746064168217,-154.83177514,0.0003189,2]
[359492855,1746064168237,-2833.4888316,0.0003199,2]
[359492856,1746064168258,-500.0,0.00031999,2]
[359492857,1746064168390,-500.0,0.00031999,2]
[359492858,1746064168412,-358.90231742,0.00031999,2]
[359492859,1746064168434,-500.0,0.00031999,2]
[359492860,1746064168455,-500.0,0.00031999,2]
[359492861,1746064168478,-459.40086561,0.00031999,2]
[359492862,1746064168498,-275.41330991,0.00031999,2]
[359492863,1746064168520,-500.0,0.00031999,2]
[359492864,1746064168540,-500.0,0.00031999,2]
[359492865,1746064168561,-554.27217167,0.00031999,2]
[359492866,1746064168581,-108519.57187927,0.00032,60]
[359492870,1746064201003,200.0,0.00028,3]
[359492871,1746064206693,155.0,0.00030137,2]
[359492872,1746064207309,37.37984043,0.00030137,2]
[359492960,1746064237010,-113.94493634,0.00030137,2]
[359492961,1746064237019,-461.56837267,0.00032,60]
[359492963,1746064237029,-500.0,0.00032379,5]
[359492964,1746064237039,-172.33455,0.00033165,2]
[359492966,1746064237049,-1190.0,0.00034,2]
[359492968,1746064237058,-152.43765679,0.00034343,2]
[359492969,1746064237067,-421.37435881,0.00034679,2]
[359492970,1746064237085,-501.31651463,0.00035513,5]
[359492971,1746064237097,-781.389372,0.00035576,2]
[359492972,1746064237106,-572.371535,0.00035733,2]
[359492973,1746064237116,-503.24351758,0.00036104,5]
[359492975,1746064237126,-1000.0,0.00036104,5]
[359492976,1746064237138,-174.26679948,0.000362,120]
[359492977,1746064237148,-1000.0,0.00036529,5]
[359492978,1746064237158,-801.518159,0.00036529,5]
[359492979,1746064237169,-190.1167793,0.00037386,120]
[359492980,1746064237179,-172.33455,0.00038933,2]
[359492981,1746064237189,-2833.4888316,0.00039612,3]
[359492982,1746064237198,-545.0,0.00039622,2]
[359492983,1746064237210,-2258.202,0.00039622,2]
[359492984,1746064237220,-500.0,0.00039664,60]
[359492985,1746064237230,-169.61,0.00039961,15]
[359492986,1746064237240,-502.29208565,0.00039973,5]
[359492987,1746064237249,-502.84510344,0.00039973,5]
[359492988,1746064237259,-1300.33556806,0.00039973,2]
[359492989,1746064237269,-10808.02528512,0.0003999,3]
[359492990,1746064237281,-529.8371705,0.0003999,3]
[359493002,1746064238179,-2738.60116212,0.0003999,3]
[359493009,1746064238234,-2924.46937186,0.0003999,3]
[359493011,1746064238244,-303.4545405,0.0003999,3]
[359493013,1746064238254,-307191.0995,0.00039999,4]
[359493015,1746064238264,-245864.54760449,0.0004,30]
[359493017,1746064238275,-1152.0,0.0004,30]
[359493019,1746064238287,-645.63168598,0.0004,30]
[359493022,1746064238307,-10617.37345385,0.0004,30]
[359493027,1746064238343,-5259.4322417,0.0004,30]
[359493029,1746064238353,-368.0,0.0004,120]
[359493031,1746064238363,-550.82094679,0.0004,5]
[359493034,1746064238372,-2883.79,0.0004,7]
[359493036,1746064238382,-198.44749776,0.00040073,5]
[359493038,1746064238392,-503.70291426,0.00040073,5]
[359493040,1746064238402,-150.0,0.00040073,5]
[359493042,1746064238412,-501.65421921,0.00040073,5]
[359493044,1746064238422,-502.60356651,0.00040073,5]
[359493046,1746064238431,-501.54654889,0.00040073,5]
[359493048,1746064238441,-503.97941034,0.00040073,5]
[359493050,1746064238451,-208.36755776,0.0004009,3]
[359493052,1746064238460,-15393.22237752,0.0004009,3]
[359493284,1746064240846,-200.0,0.00029,3]
[359493286,1746064240856,-18608.64360168,0.0004009,3]
[359493288,1746064240866,-606.909081,0.0004009,3]
[359493290,1746064240875,-3323.28462866,0.000401,2]
[359493292,1746064240884,-103233.70617349,0.000401,30]
[359493294,1746064240896,-54865.49621487,0.000401,30]
[359494853,1746064819209,-339.0,0.00025205,2]
[359494864,1746065204128,-62.27667508,0.00025205,2]
[359494865,1746065204150,-149.6874211,0.00027397,2]
[359494866,1746065228284,-13.0729869,0.00027397,2]
[359494867,1746065228305,-154.4892428,0.00027397,3]
[359494868,1746065228327,-411.91263996,0.000294,2]
[359494869,1746065228348,-312.0,0.00032,30]
[359494870,1746065228372,-238.9556301,0.00033474,2]
[359494871,1746065228392,-162.760408,0.00033844,2]
[359494872,1746065228413,-166.0,0.00034792,2]
[359494873,1746065228440,-302.82660392,0.00035053,2]
[359494874,1746065228460,-160.0,0.00035053,2]
[359494875,1746065228481,-208.520536,0.00035054,2]
[359494876,1746065228500,-582.421328,0.00035117,2]
[359494877,1746065228522,-161.45095861,0.00035383,2]
[359494878,1746065231078,-88.54904139,0.00035383,2]
[359494879,1746065231099,-174.26679948,0.000362,120]
[359494880,1746065231120,-400.0,0.00036816,3]
[359494881,1746065231140,-400.0,0.00036816,2]
[359494882,1746065231159,-1592.1816267,0.00036817,2]
[359494883,1746065232086,-874.6683351,0.00036817,2]
[359494884,1746065251095,-250.70797393,0.00033692,2]
[359494885,1746065251117,-377.47371139,0.00036817,2]
[359494886,1746065254127,-358.03829804,0.00036817,2]
[359494894,1746065348081,-1840.21065983,0.00025205,2]
[359494917,1746065437166,-2772.5427825,0.00035855,2]
[359494918,1746065437272,-22127.4572175,0.00035855,2]
[359494919,1746065437281,-500.0,0.000369,5]
[359494920,1746065437290,-501.65508662,0.000369,5]
[359494921,1746065437299,-500.0,0.0003745,5]
[359494922,1746065437308,-500.64140692,0.0003782,3]
[359494923,1746065437317,-170.44753878,0.0003782,5]
[359494924,1746065437326,-500.0,0.0003782,5]
[359494925,1746065437335,-501.56201146,0.0003782,5]
[359494926,1746065437344,-501.68673466,0.0003782,5]
[359494928,1746065437353,-502.98982907,0.0003782,5]
[359494929,1746065437362,-501.25767588,0.0003782,5]
[359494932,1746065437371,-503.9234981,0.00037973,5]
[359494933,1746065437380,-501.49854421,0.00037973,5]
[359494934,1746065437389,-500.0,0.00037973,5]
[359494935,1746065437398,-500.0,0.00037973,2]
[359494937,1746065437408,-500.42188411,0.00037973,5]
[359494938,1746065437417,-500.0,0.00037973,5]
[359494939,1746065437426,-500.43180077,0.00037973,5]
[359494940,1746065437435,-503.30892032,0.00037973,5]
[359494941,1746065437444,-508.09149656,0.00037973,5]
[359494942,1746065437453,-519.2282152,0.00037973,5]
[359494943,1746065437462,-500.46298553,0.00037973,5]
[359494944,1746065437472,-507.58958699,0.00037973,5]
[359494945,1746065437481,-509.25666339,0.00037973,5]
[359494946,1746065437491,-230.9059633,0.00037973,5]
[359494947,1746065437501,-200.97358143,0.00037973,5]
[359494948,1746065437510,-506.40841199,0.00037973,5]
[359494949,1746065437519,-178.17792084,0.00037973,5]
[359494950,1746065437529,-500.0,0.00037999,15]
[359494951,1746065437538,-500.0,0.00037999,15]
[359494952,1746065437548,-500.0,0.00037999,15]
[359494953,1746065437558,-494.76422566,0.00037999,15]
[359494955,1746065437567,-500.0,0.00037999,15]
[359494957,1746065437576,-500.0,0.00037999,15]
[359494959,1746065437585,-500.0,0.00037999,15]
[359494960,1746065437595,-500.0,0.00037999,15]
[359494961,1746065437604,-519.93797756,0.00037999,15]
[359494963,1746065437615,-500.0,0.00037999,15]
[359494965,1746065437626,-500.0,0.00037999,15]
[359494967,1746065437637,-500.0,0.00037999,15]
[359494969,1746065437646,-500.0,0.00037999,15]
[359494970,1746065437655,-500.0,0.00037999,15]
[359494971,1746065437665,-457.72952125,0.00037999,15]
[359494972,1746065437674,-500.0,0.00037999,15]
[359494973,1746065437684,-246.82072238,0.00037999,15]
[359494994,1746065438333,-253.17927762,0.00037999,15]
[359494995,1746065438343,-500.0,0.00037999,15]
[359494996,1746065438353,-228.70098796,0.00037999,15]
[359494997,1746065438364,-271.29901204,0.00037999,15]
[359494998,1746065438373,-500.0,0.00037999,15]
[359494999,1746065438383,-500.0,0.00037999,15]
[359495000,1746065438393,-500.0,0.00037999,15]
[359495001,1746065438403,-500.0,0.00037999,15]
[359495002,1746065438412,-500.0,0.00037999,15]
[359495003,1746065438422,-500.0,0.00037999,15]
[359495004,1746065438431,-2000.0,0.00038,120]
[359495005,1746065438450,-2000.0,0.00038,120]
[359495006,1746065438460,-2000.0,0.00038,120]
[359495007,1746065438470,-2000.0,0.00038,120]
[359495008,1746065438480,-2000.0,0.00038,120]
[359495009,1746065438491,-2000.0,0.00038,120]
[359495010,1746065438500,-2000.0,0.00038,120]
[359495011,1746065438511,-2000.0,0.00038,120]
[359495012,1746065438521,-2000.0,0.00038,120]
[359495013,1746065438531,-2000.0,0.00038,120]
[359495014,1746065438541,-2000.0,0.00038,120]
[359495015,1746065438551,-2000.0,0.00038,120]
[359495016,1746065438561,-2000.0,0.00038,120]
[359495017,1746065438570,-2000.0,0.00038,120]
[359495018,1746065438580,-2000.0,0.00038,120]
[359495019,1746065438589,-2000.0,0.00038,120]
[359495020,1746065438599,-2000.0,0.00038,120]
[359495021,1746065438609,-2000.0,0.00038,120]
[359495022,1746065438622,-2000.0,0.00038,120]
[359495023,1746065438632,-2000.0,0.00038,120]
[359495024,1746065438641,-2000.0,0.00038,120]
[359495025,1746065438651,-2000.0,0.00038,120]
[359495026,1746065438661,-2000.0,0.00038,120]
[359495027,1746065438670,-2000.0,0.00038,120]
[359495028,1746065438679,-2000.0,0.00038,120]
[359495029,1746065438689,-2000.0,0.00038,120]
[359495030,1746065438698,-2000.0,0.00038,120]
[359495031,1746065438709,-500.0,0.00038,120]
[359495032,1746065438718,-500.0,0.00038067,5]
[359495033,1746065438728,-442.986,0.0003811,2]
[359495034,1746065438738,-2000.0,0.000382,120]
[359495035,1746065438747,-341.25856234,0.0003825,5]
[359495036,1746065438757,-500.0,0.0003825,5]
[359495037,1746065438766,-535.30017746,0.0003825,5]
[359495038,1746065438776,-324.63035267,0.0003899,3]
[359495039,1746065438786,-9980.59799509,0.00039,120]
[359495040,1746065438796,-500.0,0.00039664,60]
[359495041,1746065438805,-1298.52141068,0.0003999,3]
[359495057,1746065438951,-42716.91169145,0.00039997,2]
[359495059,1746065438962,-446.27471404,0.00039999,31]
[359495061,1746065438973,-20100.38690555,0.0004,2]
[359495063,1746065438983,-7893.83394426,0.0004,30]
[359495065,1746065438995,-2561.80641442,0.0004,30]
[359495068,1746065439007,-752.55185998,0.0004,30]
[359495125,1746065439697,-2323.01237625,0.0004,30]
[359495192,1746065441049,-403.0,0.00039272,2]
[359495193,1746065441060,-1271.57770759,0.0004,30]
[359495194,1746065441072,-121283.03063065,0.0004,30]
[359495195,1746065441084,-10833.66557914,0.0004,30]
[359495196,1746065441093,-2078.48048498,0.0004,2]
[359495197,1746065441103,-500.0,0.00040073,5]
[359495198,1746065441113,-3246.3035267,0.0004009,3]
[359495199,1746065441124,-1015.589844,0.00040099,2]
[359495200,1746065441134,-151.0,0.00040099,30]
[359495201,1746065441143,-151.47158686,0.00040099,30]
[359495202,1746065441153,-200.0,0.00040099,30]
[359495204,1746065441163,-207.4,0.00040099,30]
[359495206,1746065441172,-215.0738,0.00040099,30]
[359495209,1746065441182,-223.0315306,0.00040099,30]
[359495210,1746065441193,-231.28369723,0.00040099,30]
[359495212,1746065441202,-239.84119403,0.00040099,30]
[359495214,1746065441212,-206.90843507,0.00040099,30]
[359495217,1746065441225,-15621.91566867,0.000401,30]
[359495444,1746065443610,-366.45182833,0.000401,30]
[359495447,1746065443622,-1460.24525941,0.000401,30]
[359495734,1746065446441,-37118.63574751,0.000401,30]
[359495736,1746065446454,-16232.2703132,0.000401,30]
[359495738,1746065446465,-4850.91746335,0.000401,30]
[359495743,1746065446498,-7787.34499547,0.000401,30]
[359495745,1746065446510,-4845.39638205,0.000401,30]
[359495747,1746065446521,-257.63357897,0.000401,30]
[359495749,1746065446533,-3025.18492575,0.000401,30]
[359496547,1746065795257,10000.0,0.00025,30]
[359496553,1746066425138,-313.5174939,0.00027,3]
[359496554,1746066425162,-71.23152226,0.00027397,2]
[359496556,1746066435141,-94.43990674,0.00027397,2]
[359496557,1746066435166,-181.05154541,0.00032811,9]
[359496558,1746066435196,-165.671429,0.00033844,2]
[359496559,1746066435220,-153.0,0.00033972,2]
[359496560,1746066435244,-428.06315049,0.00036172,2]
[359496561,1746066435271,-465.978358,0.00036419,2]
[359496562,1746066435298,-428.06315049,0.00036502,2]
[359496563,1746066435320,-428.06315049,0.00036907,2]
[359496564,1746066435342,-1200.0,0.00037016,3]
[359496565,1746066435362,-605.57341045,0.00037017,2]
[359496566,1746066435389,-208.520536,0.00037017,2]
[359496567,1746066435413,-428.06315049,0.00037248,2]
[359496568,1746066435439,-400.0,0.00037316,2]
[359496569,1746066435464,-428.06315049,0.00037336,2]
[359496570,1746066435490,-428.06315049,0.00037604,2]
[359496571,1746066435516,-924.63606157,0.0003762,2]
[359496572,1746066437140,-467.22006695,0.0003762,2]
[359496573,1746066437164,-160.0,0.00037846,2]
[359496574,1746066437188,-160.0,0.00037972,2]
[359496575,1746066437212,-321.9938649,0.00037989,2]
[359496576,1746066445102,-106.06928559,0.00037989,2]
[359496577,1746066445128,-428.06315049,0.00038161,2]
[359496578,1746066445153,-314.89697758,0.00038458,2]
[359496581,1746066568090,-173.19691242,0.00025,2]
[359496582,1746066568110,-206.56531629,0.00025,2]
[359496583,1746066568130,-150.0,0.00025,3]
[359496584,1746066568151,-900.0,0.00025469,3]
[359496585,1746066570090,-162.2624692,0.00032913,2]
[359496586,1746066570110,-151.71899929,0.00035,10]
[359496589,1746066618309,190.41965672,0.00027,3]
[359496590,1746066620592,155.49525,0.00030937,2]
[359496625,1746066632622,-317.80668087,0.0003788,2]
[359496747,1746066638486,-82.19331913,0.0003788,2]
[359496749,1746066638496,-317.6338795,0.00037881,2]
[359496751,1746066638508,-5015.35322831,0.00037881,2]
[359496756,1746066638542,-19567.01289219,0.00037881,2]
[359496758,1746066638552,-1290.4593975,0.00037883,2]
[359496760,1746066638561,-397.28936186,0.00037973,5]
[359496762,1746066638570,-500.0,0.00037973,2]
[359496764,1746066638580,-500.30708884,0.00037973,5]
[359496766,1746066638590,-500.0,0.00037973,5]
[359496769,1746066638600,-351.80956948,0.00037973,2]
[359496772,1746066638610,-192.11641446,0.00037973,5]
[359496774,1746066638620,-503.84155841,0.00037973,5]
[359496776,1746066638629,-501.07087874,0.00037973,5]
[359496778,1746066638639,-500.0,0.00037973,5]
[359496781,1746066638648,-500.0,0.00037973,5]
[359496784,1746066638658,-409.91493075,0.00037973,5]
[359496787,1746066638667,-500.0,0.00037973,5]
[359496790,1746066638677,-2048.7051599,0.00038,30]
[359496794,1746066638689,-15074.56858948,0.00038,30]
[359496798,1746066638701,-1177.45222602,0.00038,30]
[359496801,1746066638713,-4992.65182126,0.00038,30]
[359496803,1746066638726,-1246.09278575,0.00038,30]
[359496871,1746066640935,-66967.80269439,0.00038,30]
[359496872,1746066640948,-449.77381014,0.00038,30]
[359496873,1746066640990,-1070.11454301,0.00038,30]
[359496874,1746066641045,-482.02195921,0.00038,30]
[359496875,1746066641057,-760.70198306,0.00038,30]
[359496876,1746066641068,-791.3323053,0.00038,30]
[359496877,1746066641079,-1842.22918461,0.00038,30]
[359496890,1746066643733,-46372.42475205,0.00038,30]
[359496892,1746066643743,-375.58032091,0.00039318,2]
[359496894,1746066643752,-403.0,0.000396,2]